bitfinex/quotes_SOLUSD_20250417
["timestamp","ask_amount","ask_price","bid_price","bid_amount"]
[1744907768472,0.03,134.91,134.9,91.25128828]
[1744907768682,0.03,134.91,134.9,117.25128828]
[1744907769984,0.03,134.91,134.9,97.25128828]
[1744907770996,0.03,134.91,134.9,117.25128828]
[1744907771369,0.03,134.91,134.9,200.12128828]
[1744907771587,0.03,134.91,134.9,180.12128828]
[1744907771776,0.03,134.91,134.9,153.77441784]
[1744907771976,0.03,134.91,134.9,161.18731628]
[1744907772279,0.03,134.91,134.9,153.77441784]
[1744907772988,0.03,134.91,134.9,200.12128828]
[1744907773172,7.40869467,134.98,134.97,44.90441784]
[1744907773372,7.40869467,134.98,134.86,82.87]
[1744907773373,70.83437491,134.98,134.86,82.87]
[1744907773570,44.90441784,134.96,134.91,44.90441784]
[1744907773778,7.4101519,134.95,134.91,44.90441784]
[1744907774673,7.4101519,134.95,134.88,26.06364566]
[1744907774873,7.4101519,134.95,134.91,44.90441784]
[1744907775583,7.4101519,134.95,134.92,44.90441784]
[1744907775784,25.93366475,134.96,134.92,44.90441784]
[1744907775981,25.93366475,134.96,134.89,44.90441784]
[1744907776302,25.93366475,134.96,134.92,44.90441784]
[1744907776489,25.93366475,134.96,134.93,44.90441784]
[1744907776689,25.93366475,134.96,134.94,44.90441784]
[1744907776690,7.40960284,134.96,134.94,44.90441784]
[1744907776990,7.40960284,134.96,134.95,44.90441784]
[1744907777177,7.40960284,134.96,134.94,82.87]
[1744907777382,52.31402068,134.96,134.94,82.87]
[1744907777791,7.40960284,134.96,134.92,127.77441784]
[1744907778094,7.40960284,134.96,134.94,44.90441784]
[1744907778689,7.40960284,134.96,134.94,127.77441784]
[1744907779185,7.40960284,134.96,134.94,82.87]
[1744907779999,25.96171454,134.97,134.94,82.87]
[1744907780990,70.86613238,134.97,134.94,82.87]
[1744907781197,55.46777867,134.97,134.94,82.87]
[1744907781990,7.43905386,134.97,134.95,29.50606413]
[1744907782194,0.03,134.97,134.96,29.50606413]
[1744907783814,0.03,134.97,134.96,59.01212826]
[1744907783997,0.03,134.97,134.96,85.01212826]
[1744907784610,0.03,134.97,134.96,92.4217311]
[1744907785111,0.03,134.97,134.96,111.3557031]
[1744907785405,0.03,134.97,134.96,115.72983156]
[1744907786903,0.03,134.97,134.96,115.38625672]
[1744907787098,0.03,134.97,134.96,122.79585956]
[1744907787302,0.03,134.97,134.96,141.58766999]
[1744907787499,0.03,134.97,134.96,141.72983156]
[1744907788695,0.03,134.97,134.96,115.38625672]
[1744907789508,0.03,134.97,134.96,122.79585956]
[1744907789986,0.03,134.97,134.96,224.59983156]
[1744907791307,0.03,134.97,134.96,198.59983156]
[1744907792380,0.03,134.97,134.96,109.21357484]
[1744907792585,0.03,134.97,134.93,82.87]
[1744907792894,0.03,134.97,134.96,44.69312836]
[1744907793396,0.03,134.97,134.93,82.87]
[1744907793595,0.03,134.97,134.93,127.56312836]
[1744907793810,0.03,134.97,134.93,82.87]
[1744907793996,7.4101519,134.95,134.93,82.87]
[1744907794187,7.4101519,134.95,134.93,127.56312836]
[1744907794909,7.4101519,134.95,134.93,82.87]
[1744907795285,7.4101519,134.95,134.93,127.56312836]
[1744907795685,70.65516491,134.97,134.93,82.87]
[1744907796295,70.69312836,134.94,134.89,82.87]
[1744907796498,44.69312836,134.93,134.89,127.56312836]
[1744907796690,44.69312836,134.94,134.9,44.69312836]
[1744907797211,44.69312836,134.94,134.89,82.87]
[1744907797413,44.69312836,134.9,134.85,82.933]
[1744907797589,44.69312836,134.9,134.86,44.69312836]
[1744907797793,7.41179958,134.92,134.89,44.69312836]
[1744907798019,7.41179958,134.92,134.91,44.69312836]
[1744907798191,7.41179958,134.92,134.9,44.69312836]
[1744907798393,7.41179958,134.92,134.89,127.56312836]
[1744907798704,26.0,134.96,134.91,44.69312836]
[1744907798999,44.69312836,134.94,134.89,82.87]
[1744907799308,44.69312836,134.93,134.89,82.87]
[1744907799687,25.94129854,134.92,134.89,82.87]
[1744907799888,70.6344269,134.92,134.89,82.87]
[1744907800310,25.94129854,134.92,134.89,127.23312836]
[1744907800521,7.41179958,134.92,134.89,127.23312836]
[1744907800699,7.41179958,134.92,134.9,44.69312836]
[1744907800897,44.69312836,134.91,134.86,44.69312836]
[1744907801107,44.69312836,134.9,134.85,127.29612836]
[1744907801624,44.69312836,134.89,134.85,44.75612836]
[1744907801910,32.55279168,134.88,134.85,0.063]
[1744907802108,32.55279168,134.88,134.85,44.75612836]
[1744907802418,77.24592004,134.88,134.85,0.063]
[1744907802913,44.69312836,134.87,134.85,0.063]
[1744907803112,44.69312836,134.86,134.85,0.063]
[1744907803691,52.10822549,134.86,134.85,0.063]
[1744907804022,25.95283997,134.86,134.84,44.69312836]
[1744907804324,25.95283997,134.86,134.83,44.69312836]
[1744907804511,25.95283997,134.86,134.82,44.69312836]
[1744907804716,44.69312836,134.84,134.82,82.54]
[1744907805293,29.56232792,134.83,134.82,82.54]
[1744907805494,29.56232792,134.83,134.77,82.603]
[1744907805698,7.41729713,134.82,134.78,29.56232792]
[1744907806502,7.41729713,134.82,134.77,82.603]
[1744907806903,25.96053997,134.82,134.79,29.56232792]
[1744907807710,18.54324284,134.82,134.79,29.56232792]
[1744907808497,29.56232792,134.8,134.77,0.063]
[1744907808707,29.56232792,134.81,134.77,0.063]
[1744907809319,29.56232792,134.8,134.77,0.063]
[1744907810223,7.41894799,134.79,134.77,0.063]
[1744907810999,7.41894799,134.79,134.77,29.62532792]
[1744907811199,7.41894799,134.79,134.78,29.56232792]
[1744907811400,7.41894799,134.79,134.77,0.063]
[1744907812415,7.41894799,134.79,134.77,29.62532792]
[1744907813537,7.41729713,134.82,134.78,29.56232792]
[1744907813704,7.41729713,134.82,134.8,29.56232792]
[1744907814118,25.95981224,134.83,134.77,82.603]
[1744907814323,25.95981224,134.83,134.81,29.56232792]
[1744907814324,7.41674701,134.83,134.81,29.56232792]
[1744907814506,7.41399762,134.88,134.82,59.12465584]
[1744907814710,7.41399762,134.88,134.87,29.56232792]
[1744907814926,7.41399762,134.88,134.82,29.56232792]
[1744907815113,7.41399762,134.88,134.86,29.56232792]
[1744907815814,25.94824675,134.89,134.86,29.56232792]
[1744907816019,7.41344799,134.89,134.88,29.56232792]
[1744907816334,7.41344799,134.89,134.86,29.56232792]
[1744907816507,7.41344799,134.89,134.8,26.35218373]
[1744907816708,7.41344799,134.89,134.85,29.56232792]
[1744907816935,29.56232792,134.88,134.83,55.56232792]
[1744907817135,29.56232792,134.87,134.82,29.56232792]
[1744907817832,25.95283997,134.86,134.82,29.56232792]
[1744907818844,25.95283997,134.86,134.83,29.56232792]
[1744907819544,25.95283997,134.86,134.79,26.0]
[1744907819847,25.95283997,134.86,134.82,29.56232792]
[1744907820558,7.41509713,134.86,134.83,29.56232792]
[1744907821130,7.41509713,134.86,134.79,108.54]
[1744907821363,7.41509713,134.86,134.83,29.56232792]
[1744907821831,25.95283997,134.86,134.83,29.56232792]
[1744907822031,7.41509713,134.86,134.83,29.56232792]
[1744907822449,7.41509713,134.86,134.81,29.56232792]
[1744907822450,55.51516789,134.86,134.81,29.56232792]
[1744907822933,55.51516789,134.86,134.82,29.56232792]
[1744907824143,7.41509713,134.86,134.85,29.56232792]
[1744907824821,7.41509713,134.86,134.84,29.56232792]
[1744907825028,7.41509713,134.86,134.83,29.56232792]
[1744907825029,25.95283997,134.86,134.83,29.56232792]
[1744907826063,44.88103997,134.89,134.83,29.56232792]
[1744907826235,29.56232792,134.88,134.79,115.95888971]
[1744907826433,29.56232792,134.87,134.79,108.54]
[1744907826648,29.56232792,134.86,134.81,29.56232792]
[1744907826854,1.5677,134.88,134.83,29.56232792]
[1744907826855,29.56232792,134.87,134.83,29.56232792]
[1744907827648,1.5677,134.88,134.84,29.56232792]
[1744907828060,25.95091569,134.87,134.84,29.56232792]
[1744907828239,25.95091569,134.87,134.83,29.56232792]
[1744907828439,55.51324361,134.87,134.79,108.54]
[1744907828640,29.56232792,134.85,134.8,29.56232792]
[1744907829964,29.56232792,134.84,134.79,112.10232792]
[1744907830138,7.41674701,134.83,134.79,112.10232792]
[1744907830535,25.95861454,134.83,134.79,112.10232792]
[1744907830740,25.95861454,134.83,134.78,29.56232792]
[1744907830950,29.56232792,134.82,134.78,29.56232792]
[1744907831542,25.95861454,134.83,134.78,29.56232792]
[1744907831734,55.52094246,134.83,134.78,29.56232792]
[1744907832050,25.96246569,134.81,134.78,29.56232792]
[1744907832757,29.56232792,134.8,134.77,82.603]
[1744907832931,55.56232792,134.78,134.77,0.063]
[1744907833555,55.56232792,134.78,134.77,1e-08]
[1744907834053,62.98182636,134.78,134.77,1e-08]
[1744907837359,81.91579836,134.78,134.77,1e-08]
[1744907840171,81.91579836,134.78,134.72,0.063]
[1744907840172,137.56203666,134.78,134.72,0.063]
[1744907840371,29.56232792,134.74,134.72,0.063]
[1744907840868,29.56232792,134.73,134.72,0.063]
[1744907841252,29.56232792,134.73,134.72,1e-08]
[1744907841453,57.51825183,134.73,134.72,1e-08]
[1744907841658,26.0,134.68,134.66,0.063]
[1744907841843,48.49629992,134.67,134.64,0.03]
[1744907842041,55.56232792,134.65,134.64,0.03]
[1744907842458,26.0,134.65,134.64,0.03]
[1744907842744,55.56232792,134.65,134.64,0.03]
[1744907843149,55.56232792,134.65,134.62,0.03]
[1744907843150,76.08899992,134.65,134.62,0.03]
[1744907843376,29.56232792,134.63,134.62,0.03]
[1744907843555,36.9900929,134.63,134.62,0.03]
[1744907844156,7.42776498,134.63,134.62,0.03]
[1744907844471,37.12989292,134.67,134.62,29.59232792]
[1744907844472,29.56232792,134.66,134.62,29.59232792]
[1744907844651,29.56232792,134.68,134.62,0.03]
[1744907844971,29.56232792,134.68,134.64,29.56232792]
[1744907845180,29.56232792,134.68,134.66,29.56232792]
[1744907845181,7.42524261,134.68,134.66,29.56232792]
[1744907845359,7.42444141,134.7,134.67,29.56232792]
[1744907845675,7.42335387,134.71,134.68,29.56232792]
[1744907845867,7.42291877,134.72,134.7,29.56232792]
[1744907846391,7.4224724,134.73,134.7,29.56232792]
[1744907846558,35.83242792,134.75,134.71,29.56232792]
[1744907846559,7.42115027,134.75,134.71,29.56232792]
[1744907846764,36.98347819,134.75,134.71,29.56232792]
[1744907846959,36.98347819,134.75,134.69,29.56232792]
[1744907846960,55.56232792,134.74,134.69,29.56232792]
[1744907847154,29.56232792,134.74,134.69,29.56232792]
[1744907847463,29.56232792,134.73,134.69,29.56232792]
[1744907847671,29.56232792,134.73,134.64,112.20713157]
[1744907847867,7.42280285,134.72,134.69,29.56232792]
[1744907848761,7.42280285,134.72,134.7,29.56232792]
[1744907849283,7.42225191,134.73,134.7,29.56232792]
[1744907849460,7.42225191,134.73,134.69,29.56232792]
[1744907849649,36.98457983,134.73,134.64,112.20702437]
[1744907849965,25.97788168,134.73,134.69,29.56232792]
[1744907850167,25.97788168,134.73,134.7,29.56232792]
[1744907850367,25.97788168,134.73,134.64,112.2071984]
[1744907850677,7.42225191,134.73,134.7,29.56232792]
[1744907851574,7.42225191,134.73,134.68,29.56232792]
[1744907851575,36.98457983,134.73,134.68,29.56232792]
[1744907852566,55.5402096,134.73,134.68,29.56232792]
[1744907853467,29.56232792,134.72,134.67,29.56232792]
[1744907853678,29.56232792,134.72,134.64,104.78]
[1744907853864,29.56232792,134.72,134.67,29.56232792]
[1744907854371,29.56232792,134.71,134.66,29.56232792]
[1744907854578,29.56232792,134.69,134.65,29.56232792]
[1744907854780,29.56232792,134.68,134.64,29.56232792]
[1744907855079,29.56232792,134.67,134.63,29.56232792]
[1744907855256,29.56232792,134.68,134.63,29.56232792]
[1744907855454,7.42555877,134.67,134.63,29.56232792]
[1744907855656,36.98788669,134.67,134.62,82.57]
[1744907855973,7.42555877,134.67,134.65,29.56232792]
[1744907857484,25.98794483,134.68,134.64,29.56232792]
[1744907857974,7.42500742,134.68,134.64,29.56232792]
[1744907858180,7.42500742,134.68,134.65,29.56232792]
[1744907859172,7.42390497,134.7,134.67,29.56232792]
[1744907859986,29.56232792,134.69,134.65,29.56232792]
[1744907860360,55.54599532,134.7,134.65,29.56232792]
[1744907860870,25.9836674,134.7,134.64,29.56232792]
[1744907861074,29.56232792,134.69,134.64,29.56232792]
[1744907861275,29.56232792,134.69,134.65,29.56232792]
[1744907861478,55.54599532,134.7,134.65,29.56232792]
[1744907861982,29.56232792,134.69,134.65,29.56232792]
[1744907862481,29.56232792,134.69,134.63,108.54]
[1744907862782,29.56232792,134.69,134.65,29.56232792]
[1744907863161,29.56232792,134.69,134.63,108.54]
[1744907863362,29.56232792,134.69,134.63,82.54]
[1744907863559,29.56232792,134.68,134.63,82.54]
[1744907863885,29.56232792,134.64,134.62,0.03]
[1744907864063,36.98955902,134.64,134.62,0.03]
[1744907864685,29.56232792,134.63,134.62,0.03]
[1744907864877,7.4272311,134.64,134.62,0.03]
[1744907865078,36.98955902,134.64,134.62,0.03]
[1744907866396,29.56232792,134.64,134.62,0.03]
[1744907866583,29.56232792,134.66,134.62,0.03]
[1744907866773,30.2446,134.71,134.64,29.56232792]
[1744907867099,29.56232792,134.69,134.65,29.56232792]
[1744907867383,29.56232792,134.69,134.64,29.56232792]
[1744907868576,7.42488386,134.69,134.62,82.57]
[1744907868773,29.56232792,134.66,134.62,82.57]
[1744907868973,29.56232792,134.66,134.62,112.13232792]
[1744907869289,29.56232792,134.64,134.62,0.03]
[1744907869478,48.21197678,134.68,134.62,0.03]
[1744907869479,18.64964886,134.68,134.62,0.03]
[1744907869788,29.56232792,134.66,134.62,29.59232792]
[1744907869985,29.56232792,134.66,134.62,0.03]
[1744907870170,29.56232792,134.65,134.62,0.03]
[1744907870787,36.98942195,134.65,134.62,0.03]
[1744907872791,7.42709403,134.65,134.62,0.03]
[1744907873286,29.56232792,134.65,134.62,0.03]
[1744907873935,29.56232792,134.64,134.62,0.03]
[1744907874113,29.56232792,134.65,134.62,0.03]
[1744907874393,29.56232792,134.64,134.62,0.03]
[1744907874803,29.56232792,134.65,134.62,0.03]
[1744907875473,7.42715008,134.65,134.62,29.59232792]
[1744907876987,7.42715008,134.65,134.62,0.03]
[1744907879307,36.989478,134.65,134.62,0.03]
[1744907879996,7.42715008,134.65,134.62,29.59232792]
[1744907880299,7.42628613,134.66,134.63,29.56232792]
[1744907880497,67.39246777,134.71,134.63,29.56232792]
[1744907880498,0.03,134.71,134.65,29.56232792]
[1744907880794,0.03,134.71,134.65,82.54]
[1744907881194,0.03,134.71,134.68,29.56232792]
[1744907881585,0.03,134.71,134.65,82.54]
[1744907881790,0.03,134.71,134.68,29.56232792]
[1744907882183,0.03,134.71,134.65,82.54]
[1744907882385,0.03,134.71,134.69,29.56232792]
[1744907883702,0.03,134.71,134.7,29.56232792]
[1744907884477,0.03,134.71,134.65,89.96663364]
[1744907884478,0.03,134.71,134.65,82.54]
[1744907884699,0.03,134.71,134.68,29.56232792]
[1744907886512,7.45335387,134.71,134.68,29.56232792]
[1744907887709,7.45335387,134.71,134.65,82.54]
[1744907887908,0.03,134.71,134.69,29.56232792]
[1744907888201,0.03,134.71,134.65,89.96664762]
[1744907888606,0.03,134.71,134.69,29.56232792]
[1744907889210,0.03,134.71,134.69,18.5049571]
[1744907889610,0.03,134.71,134.68,18.5049571]
[1744907889813,18.5049571,134.7,134.62,89.0638]
[1744907890018,18.5049571,134.68,134.63,18.5049571]
[1744907890492,25.92965118,134.69,134.65,18.5049571]
[1744907890695,0.03,134.71,134.68,18.5049571]
[1744907891405,7.45347918,134.71,134.68,18.5049571]
[1744907891589,25.95843628,134.71,134.67,18.5049571]
[1744907891791,7.45347918,134.71,134.67,18.5049571]
[1744907892006,7.45347918,134.71,134.64,26.0]
[1744907892288,0.03,134.71,134.68,18.5049571]
[1744907892606,7.45351726,134.71,134.68,18.5049571]
[1744907892803,7.45351726,134.71,134.64,108.54]
[1744907893002,7.45351726,134.71,134.67,18.5049571]
[1744907893416,7.45351726,134.71,134.64,108.54]
[1744907893716,7.45351726,134.71,134.68,18.5049571]
[1744907894102,7.45351726,134.71,134.64,108.54]
[1744907894293,7.45351726,134.71,134.67,18.5049571]
[1744907894294,25.95847436,134.71,134.67,18.5049571]
[1744907895114,18.5349571,134.71,134.67,18.5049571]
[1744907895312,0.03,134.71,134.67,18.5049571]
[1744907895619,0.03,134.71,134.64,115.96714479]
[1744907895819,0.03,134.71,134.68,18.5049571]
[1744907896030,0.03,134.71,134.7,18.5049571]
[1744907896709,0.03,134.71,134.66,7.42602352]
[1744907896914,0.03,134.71,134.7,18.5049571]
[1744907898801,0.03,134.71,134.69,18.5049571]
[1744907899005,0.03,134.71,134.66,108.54]
[1744907899321,0.03,134.71,134.68,18.5049571]
[1744907899527,0.03,134.71,134.69,18.5049571]
[1744907900303,0.03,134.71,134.66,108.54]
[1744907900543,0.03,134.71,134.68,18.5049571]
[1744907900710,0.03,134.71,134.66,108.54]
[1744907901040,0.03,134.71,134.7,18.5049571]
[1744907901413,0.03,134.71,134.7,101.0449571]
[1744907904315,0.03,134.71,134.7,82.54]
[1744907904634,0.03,134.71,134.68,18.5049571]
[1744907905028,0.03,134.71,134.67,103.32]
[1744907905223,18.5349571,134.71,134.66,18.5049571]
[1744907906441,18.5349571,134.71,134.65,82.54]
[1744907906618,25.92886207,134.7,134.65,18.5049571]
[1744907906825,18.5049571,134.69,134.64,18.5049571]
[1744907907023,7.42390497,134.7,134.63,26.0]
[1744907907239,29.62884094,134.69,134.64,29.62884094]
[1744907907610,29.62884094,134.69,134.63,26.0]
[1744907908012,29.62884094,134.69,134.65,29.62884094]
[1744907908413,29.62884094,134.68,134.62,109.9932]
[1744907908639,37.05424894,134.68,134.63,29.62884094]
[1744907908831,37.05424894,134.68,134.64,29.62884094]
[1744907909039,37.05424894,134.68,134.62,103.33]
[1744907909238,29.62884094,134.67,134.62,0.03]
[1744907909441,29.62884094,134.67,134.63,29.62884094]
[1744907909626,48.2784898,134.66,134.62,29.65884094]
[1744907909813,29.62884094,134.65,134.62,0.03]
[1744907910014,29.62884094,134.63,134.62,0.03]
[1744907910637,37.05605424,134.64,134.62,0.03]
[1744907911213,7.4272133,134.64,134.62,0.03]
[1744907911471,29.62884094,134.63,134.62,0.03]
[1744907912714,37.05660592,134.63,134.62,0.03]
[1744907913114,55.99057792,134.63,134.62,0.03]
[1744907914315,29.62884094,134.63,134.62,0.03]
[1744907914543,41.13757722,134.65,134.62,0.03]
[1744907914845,70.76641816,134.65,134.62,0.03]
[1744907917318,29.62884094,134.64,134.62,0.03]
[1744907917722,29.62884094,134.63,134.62,0.03]
[1744907917928,48.56281294,134.63,134.62,0.03]
[1744907919339,55.99057792,134.63,134.62,0.03]
[1744907921548,7.42776498,134.63,134.62,0.03]
[1744907921727,37.05660592,134.63,134.62,0.03]
[1744907922138,55.99057792,134.63,134.62,0.03]
[1744907923243,81.99057792,134.63,134.62,0.03]
[1744907925757,56.99057792,134.63,134.62,0.03]
[1744907926050,18.933972,134.62,134.6,0.063]
[1744907926253,48.56281294,134.61,134.59,0.03]
[1744907926465,29.62884094,134.6,134.59,0.03]
[1744907926944,56.75261294,134.6,134.59,0.03]
[1744907927254,54.10719442,134.6,134.59,0.03]
[1744907927452,53.10719442,134.6,134.59,0.03]
[1744907928128,35.9027649,134.64,134.59,0.03]
[1744907928334,18.55400192,134.61,134.59,0.03]
[1744907928527,18.55400192,134.6,134.59,0.03]
[1744907928835,0.28432314,134.62,134.59,0.03]
[1744907929035,18.55400192,134.62,134.59,0.03]
[1744907929249,18.55400192,134.61,134.59,0.03]
[1744907929948,18.55400192,134.62,134.59,0.03]
[1744907930155,26.0,134.63,134.59,18.58400192]
[1744907930754,20.3,134.64,134.61,18.55400192]
[1744907930958,20.3,134.64,134.62,18.55400192]
[1744907931333,20.3,134.64,134.61,18.55400192]
[1744907931535,20.3,134.64,134.6,18.55400192]
[1744907931830,18.64964886,134.63,134.59,0.03]
[1744907932037,18.55400192,134.61,134.59,0.03]
[1744907932353,18.55400192,134.6,134.59,0.03]
[1744907932550,44.55400192,134.63,134.59,18.58400192]
[1744907932759,26.0,134.63,134.6,18.55400192]
[1744907933646,38.85400192,134.64,134.6,18.55400192]
[1744907933848,38.85400192,134.64,134.59,0.03]
[1744907934047,18.933972,134.63,134.59,18.58400192]
[1744907934360,37.48797392,134.63,134.59,0.03]
[1744907934745,20.3,134.64,134.6,18.55400192]
[1744907935340,38.85400192,134.64,134.59,18.58400192]
[1744907935949,52.36068796,134.65,134.62,18.55400192]
[1744907935950,26.0,134.65,134.62,18.55400192]
[1744907936159,38.13400192,134.68,134.63,18.55400192]
[1744907936339,26.0,134.67,134.63,18.55400192]
[1744907937360,231.52,134.7,134.66,18.55400192]
[1744907937547,231.52,134.7,134.67,18.55400192]
[1744907937747,231.52,134.7,134.68,18.55400192]
[1744907937965,0.03,134.71,134.67,18.55400192]
[1744907938268,18.58400192,134.71,134.67,18.55400192]
[1744907940256,26.00737196,134.71,134.62,82.54]
[1744907940469,18.55400192,134.67,134.61,26.0]
[1744907940672,18.55400192,134.67,134.62,18.55400192]
[1744907940872,18.55400192,134.67,134.63,18.55400192]
[1744907941076,26.0,134.68,134.65,18.55400192]
[1744907941378,44.55400192,134.7,134.66,18.55400192]
[1744907941662,18.933972,134.7,134.66,18.55400192]
[1744907941860,26.03,134.71,134.68,18.55400192]
[1744907942254,44.58400192,134.71,134.66,18.55400192]
[1744907942451,26.03,134.71,134.68,18.55400192]
[1744907942849,33.45341344,134.71,134.68,18.55400192]
[1744907943162,33.45341344,134.71,134.67,18.55400192]
[1744907943475,18.55400192,134.69,134.62,82.54]
[1744907943651,18.55400192,134.68,134.64,18.55400192]
[1744907943844,44.91239597,134.7,134.65,18.55400192]
[1744907944039,44.91239597,134.7,134.62,82.54]
[1744907944263,18.55400192,134.69,134.65,18.55400192]
[1744907944768,26.35839405,134.7,134.66,18.55400192]
[1744907944965,26.35839405,134.7,134.67,18.55400192]
[1744907945173,44.91239597,134.7,134.66,18.55400192]
[1744907945963,44.91239597,134.7,134.65,18.55400192]
[1744907946263,18.55400192,134.69,134.65,18.55400192]
[1744907947361,44.91239597,134.7,134.65,18.55400192]
[1744907947560,44.91239597,134.7,134.66,18.55400192]
[1744907947763,33.45361334,134.71,134.67,18.55400192]
[1744907947961,18.55400192,134.7,134.66,18.55400192]
[1744907948368,18.55400192,134.69,134.64,18.55400192]
[1744907948569,44.55400192,134.68,134.63,18.55400192]
[1744907948775,0.28432314,134.7,134.66,18.55400192]
[1744907949002,26.00761526,134.71,134.62,82.54]
[1744907949003,37.23365078,134.71,134.67,18.55400192]
[1744907949184,0.03,134.71,134.68,18.55400192]
[1744907949473,37.51797392,134.71,134.63,26.0]
[1744907949678,37.51797392,134.71,134.64,18.55400192]
[1744907949679,18.55400192,134.69,134.64,18.55400192]
[1744907949885,18.55400192,134.69,134.65,18.55400192]
[1744907950070,18.55400192,134.7,134.66,18.55400192]
[1744907950263,70.94139191,134.71,134.66,18.55400192]
[1744907950463,18.55400192,134.7,134.65,18.55400192]
[1744907950665,0.03,134.71,134.68,18.55400192]
[1744907951366,18.58400192,134.71,134.66,18.55400192]
[1744907951977,0.03,134.71,134.66,18.55400192]
[1744907952281,18.58400192,134.71,134.66,18.55400192]
[1744907952656,37.48797392,134.7,134.62,82.54]
[1744907952861,18.55400192,134.68,134.63,18.55400192]
[1744907953082,18.55400192,134.69,134.64,18.55400192]
[1744907953661,18.55400192,134.68,134.64,18.55400192]
[1744907954061,18.55400192,134.67,134.62,101.09400192]
[1744907954261,18.55400192,134.66,134.62,18.55400192]
[1744907954463,0.28432314,134.62,134.59,0.03]
[1744907954677,18.55400192,134.61,134.59,0.03]
[1744907954864,0.28432314,134.62,134.59,0.03]
[1744907955064,18.55400192,134.61,134.59,0.03]
[1744907955656,37.48797392,134.6,134.59,0.03]
[1744907956179,26.26774556,134.6,134.59,0.03]
[1744907956375,18.933972,134.6,134.59,0.03]
[1744907956579,44.55400192,134.61,134.59,0.03]
[1744907956790,26.0,134.6,134.59,0.03]
[1744907956974,63.48797392,134.6,134.59,0.03]
[1744907958182,70.91739442,134.6,134.59,0.03]
[1744907961164,63.48797392,134.6,134.59,0.03]
[1744907961365,44.933972,134.6,134.59,0.03]
[1744907961585,25.98295569,134.61,134.59,0.03]
[1744907961787,18.64964886,134.6,134.59,0.03]
[1744907961960,18.55400192,134.61,134.59,0.03]
[1744907964088,18.933972,134.61,134.59,0.03]
[1744907964587,26.0,134.62,134.59,18.58400192]
[1744907964985,26.0,134.62,134.59,0.03]
[1744907965179,44.55400192,134.62,134.59,0.03]
[1744907966088,37.20365078,134.6,134.59,0.03]
[1744907966273,37.48797392,134.6,134.59,0.03]
[1744907966475,44.91739442,134.6,134.59,0.03]
[1744907966874,46.56319442,134.6,134.59,0.03]
[1744907968292,18.933972,134.59,134.58,0.03]
[1744907968487,56.64797392,134.59,134.58,0.03]
[1744907970285,82.36365078,134.59,134.58,0.03]
[1744907970490,56.50581235,134.59,134.58,0.03]
[1744907970675,90.07794642,134.59,134.58,0.03]
[1744907971072,89.93578485,134.59,134.58,0.03]
[1744907971386,82.50581235,134.59,134.58,0.03]
[1744907971593,90.07794642,134.59,134.58,0.03]
[1744907972991,64.07794642,134.59,134.58,0.03]
[1744907975395,47.399672,134.57,134.56,0.03]
[1744907975575,65.95367392,134.57,134.56,0.03]
[1744907975988,65.95367392,134.57,134.56,1e-08]
[1744907976297,65.95367392,134.57,134.49,0.063]
[1744907976298,44.933972,134.5,134.49,0.063]
[1744907976504,70.92291815,134.5,134.49,0.063]
[1744907976683,63.48797392,134.5,134.49,0.063]
[1744907976882,64.65400192,134.52,134.49,0.063]
[1744907977199,46.1,134.52,134.49,0.063]
[1744907977387,48.63720498,134.51,134.49,0.063]
[1744907978381,53.53389788,134.52,134.49,0.063]
[1744907978382,48.63720498,134.5,134.49,0.063]
[1744907978587,74.63720498,134.5,134.49,0.063]
[1744907978804,82.07214921,134.5,134.49,0.063]
[1744907979098,74.63720498,134.5,134.49,0.063]
[1744907979314,82.07214921,134.5,134.49,0.063]
[1744907979879,57.73624921,134.5,134.49,0.063]
[1744907980585,74.49504341,134.5,134.49,0.063]
[1744907980791,74.63720498,134.5,134.49,0.063]
[1744907980985,74.49504341,134.5,134.49,0.063]
[1744907981185,81.92998764,134.5,134.49,0.063]
[1744907981393,82.07214921,134.5,134.49,0.063]
[1744907981587,44.64964886,134.47,134.46,0.063]
[1744907981797,18.933972,134.46,134.45,0.063]
[1744907981983,68.73720498,134.46,134.45,0.063]
[1744907982303,0.28432314,134.45,134.39,7.3077]